fUST/lending_fUST_20240501
["ID","MTS","AMOUNT","RATE_DAILY","PERIOD"]
[325183297,1714552244216,-501.65486159,0.00057534,120]
[325183298,1714552244225,-3419.87,0.00057534,120]
[325183299,1714552244235,-500.0,0.00057534,120]
[325183300,1714552244244,-500.0,0.00057534,120]
[325183301,1714552244253,-500.0,0.00057534,120]
[325183302,1714552244262,-500.0,0.00057534,120]
[325183303,1714552244272,-1367.68,0.00057534,120]
[325183304,1714552244282,-500.0,0.00057534,120]
[325183305,1714552244292,-500.0,0.00057534,120]
[325183306,1714552244301,-500.0,0.00057534,120]
[325183307,1714552244311,-500.0,0.00057534,60]
[325183308,1714552244321,-500.0,0.00057534,120]
[325183309,1714552244332,-500.0,0.00057534,120]
[325183310,1714552244342,-500.0,0.00057534,120]
[325183311,1714552244351,-500.0,0.00057534,120]
[325183312,1714552244360,-500.0,0.00057534,120]
[325183313,1714552244370,-609.32,0.00057534,120]
[325183314,1714552244379,-1052.53,0.00057534,120]
[325183315,1714552244389,-500.0,0.00057534,120]
[325183316,1714552244399,-644.63015036,0.00057534,60]
[325183317,1714552244408,-500.0,0.00057534,120]
[325183318,1714552244418,-500.0,0.00057534,120]
[325183319,1714552244427,-500.0,0.00057534,120]
[325183320,1714552244437,-500.0,0.00057534,120]
[325183321,1714552244447,-6746.59,0.00057534,120]
[325183322,1714552244456,-500.0,0.00057534,120]
[325183323,1714552244466,-929.29,0.00057534,120]
[325183324,1714552244475,-597.72,0.00057534,120]
[325183325,1714552244485,-500.0,0.00057534,120]
[325183326,1714552244494,-631.31,0.00057534,120]
[325183327,1714552244504,-500.0,0.00057534,120]
[325183328,1714552244514,-500.0,0.00057534,120]
[325183329,1714552244523,-500.0,0.00057534,120]
[325183330,1714552244532,-500.0,0.00057534,120]
[325183331,1714552244542,-500.0,0.00057534,120]
[325183332,1714552244551,-1634.81,0.00057534,120]
[325183333,1714552244560,-500.0,0.00057534,120]
[325183334,1714552244569,-2688.71,0.00057534,120]
[325183335,1714552244579,-500.0,0.00057534,120]
[325183336,1714552244588,-500.0,0.00057534,3]
[325183337,1714552244597,-500.0,0.00057534,120]
[325183338,1714552244606,-500.0,0.00057534,120]
[325183339,1714552244615,-500.0,0.00057534,120]
[325183340,1714552244624,-500.0,0.00057534,120]
[325183341,1714552244633,-500.0,0.00057534,120]
[325183342,1714552244642,-1456.28,0.00057534,120]
[325183343,1714552244651,-1548.48,0.00057534,120]
[325183344,1714552244660,-500.0,0.00057534,120]
[325183345,1714552244669,-500.0,0.00057534,120]
[325183346,1714552244678,-500.0,0.00057534,120]
[325183347,1714552244687,-13722.29,0.00057534,120]
[325183348,1714552244696,-500.0,0.00057534,120]
[325183349,1714552244706,-500.0,0.00057534,120]
[325183350,1714552244714,-500.0,0.00057534,120]
[325183351,1714552244724,-500.0,0.00057534,120]
[325183352,1714552244733,-500.0,0.00057534,120]
[325183353,1714552244743,-500.0,0.00058356,120]
[325183354,1714552244753,-150.0,0.00058533,60]
[325183355,1714552244762,-183.733312,0.00059034,2]
[325183356,1714552244771,-419.506312,0.00059034,2]
[325183357,1714552244781,-500.0,0.00059178,120]
[325183358,1714552244790,-150.0,0.00059533,60]
[325183359,1714552244799,-500.0,0.00059999,120]
[325183360,1714552244808,-189776.92727694,0.0006,30]
[325183361,1714552245249,-1000.0022972,0.00038686,3]
[325183362,1714552245267,-11433.7309006,0.00038686,3]
[325183517,1714552247157,-285.0,0.00038686,3]
[325183519,1714552247168,-5700.0,0.00038686,3]
[325183531,1714552255912,1103.38948247,9.999e-05,2]
[325183532,1714552260227,364.65270802,9.999e-05,2]
[325183533,1714552307812,1007.95333419,9.999e-05,2]
[325183534,1714552307841,2516.60178571,9.999e-05,2]
[325183535,1714552313133,265.73519084,9.999e-05,7]
[325183536,1714552318142,154.73694719,9.999e-05,2]
[325183537,1714552568012,475.32221455,9.999e-05,2]
[325183538,1714552580899,469.01811337,9.999e-05,2]
[325183539,1714552581302,1622.14156305,9.999e-05,2]
[325183540,1714552589088,200.12196174,9.999e-05,2]
[325183545,1714552597194,446.72143296,9.999e-05,2]
[325183546,1714552597494,683.41665733,9.999e-05,2]
[325183547,1714552600481,154.7215013,9.999e-05,2]
[325183548,1714552604921,771.73283885,9.999e-05,2]
[325183549,1714552630700,154.7215013,9.999e-05,2]
[325183556,1714552921729,446.72143296,9.999e-05,2]
[325183557,1714552948066,-224.35024444,0.00016317,7]
[325183558,1714552953226,154.70605849,9.999e-05,2]
[325183559,1714553254290,446.72143296,9.999e-05,2]
[325183560,1714553332694,537.16572077,9.999e-05,2]
[325183561,1714553347185,891.03583559,9.999e-05,2]
[325183562,1714553349956,1622.14156305,9.999e-05,2]
[325183563,1714553351100,-250.00871116,0.00011259,2]
[325183580,1714553433004,291.72490529,9.999e-05,2]
[325183581,1714553433723,683.41665733,9.999e-05,2]
[325183617,1714553438902,-1790.00061626,0.00011146,2]
[325183619,1714553438913,-360.69797139,0.00011146,2]
[325183621,1714553438922,-700.5279589,0.00011147,2]
[325183623,1714553438930,-204.97670174,0.00011147,2]
[325183625,1714553438939,-15676.49529171,0.00011147,2]
[325183627,1714553438949,-7875.36127702,0.00011148,2]
[325183629,1714553438958,-2590.79776208,0.00011148,2]
[325183631,1714553438969,-24900.0,0.00011149,2]
[325183633,1714553438978,-446.72143296,0.00011255,2]
[325183635,1714553438987,-154.79876161,0.00011255,2]
[325183637,1714553438995,-5810.00596259,0.00011256,2]
[325183639,1714553439004,-2627.08475898,0.00011256,2]
[325183641,1714553439014,-8652.53212102,0.00011257,2]
[325183643,1714553439025,-5708.8889,0.00011257,2]
[325183647,1714553439048,-5839.182608,0.00011257,2]
[325183649,1714553439057,-59226.73956329,0.00011257,2]
[325183651,1714553439067,-767.97410582,0.00011262,2]
[325183653,1714553439076,-250.0,0.00011516,2]
[325183654,1714553439085,-201.13264545,0.00012416,2]
[325183655,1714553439095,-196.67646326,0.00012509,2]
[325183657,1714553439104,-891.03583559,0.00012509,2]
[325183659,1714553439113,-1892.26874616,0.00012513,2]
[325183661,1714553439122,-325.99141713,0.00012514,2]
[325183662,1714553439132,-189.06464916,0.00012523,2]
[325183663,1714553439141,-520.3609854,0.0001262,2]
[325183665,1714553439151,-301.9705639,0.00012987,2]
[325183667,1714553439160,-232.54211301,0.00012991,2]
[325183668,1714553439170,-469.94168552,0.00012991,2]
[325183670,1714553439179,-260.80316189,0.00012991,2]
[325183671,1714553439188,-155.44678633,0.00012991,2]
[325183672,1714553439198,-154.98993797,0.00013,2]
[325183673,1714553439207,-1756.1643122,0.00013699,2]
[325183674,1714553439219,-730.81737118,0.000138,2]
[325183675,1714553439228,-928.84070559,0.00014,2]
[325183676,1714553439237,-528.30786508,0.00014994,2]
[325183677,1714553439246,-154.84935434,0.00015,2]
[325183678,1714553439256,-2101.71813346,0.00015,2]
[325183679,1714553439265,-312.97578303,0.00015,2]
[325183680,1714553439275,-2392.92958612,0.00015,2]
[325183681,1714553439285,-2781.69529347,0.00015,2]
[325183682,1714553439294,-939.61631274,0.00015,2]
[325183683,1714553439303,-404.01902075,0.00015993,2]
[325183684,1714553439312,-514.39558646,0.00016,2]
[325183685,1714553439321,-9378.45996285,0.00016,2]
[325183686,1714553439331,-171.76383685,0.00016317,2]
[325183687,1714553439340,-258.90142029,0.00016317,2]
[325183688,1714553439350,-158.56399882,0.00016317,2]
[325183689,1714553439359,-189.426794,0.00018,2]
[325183690,1714553439369,-603.94471779,0.000185,2]
[325183691,1714553439378,-153.69519904,0.00018986,2]
[325183692,1714553439388,-629.65949756,0.00019178,2]
[325183693,1714553439397,-456.48521809,0.00019178,2]
[325183694,1714553439407,-285.92246067,0.00019178,2]
[325183695,1714553439417,-500.0,0.00019178,2]
[325183696,1714553439432,-500.0,0.00019178,2]
[325183697,1714553439442,-166.05659714,0.00019178,2]
[325183698,1714553439451,-196.53127612,0.00019178,2]
[325183699,1714553439461,-202.99259078,0.00019178,2]
[325183700,1714553439474,-333.84824238,0.00019178,2]
[325183701,1714553439485,-160.675707,0.00019178,2]
[325183702,1714553439495,-160.676051,0.00019178,2]
[325183703,1714553439504,-161.032701,0.00019178,2]
[325183704,1714553439516,-966.86195976,0.00019898,2]
[325183705,1714553439527,-1203.25513556,0.00019998,2]
[325183706,1714553439536,-272.66815794,0.00019998,2]
[325183707,1714553439546,-472.95493354,0.00019998,2]
[325183708,1714553439555,-3135.44755781,0.00019998,7]
[325183709,1714553439564,-247.58768756,0.00019999,2]
[325183710,1714553439574,-29356.37769527,0.0002,2]
[325183711,1714553439584,-5461.4995396,0.0002,2]
[325183712,1714553439594,-241.74656629,0.0002,2]
[325183713,1714553439604,-330.04006716,0.0002,2]
[325183714,1714553439614,-67435.2931103,0.0002,2]
[325183715,1714553439623,-80000.0,0.0002,2]
[325183716,1714553439632,-200.0,0.0002,2]
[325183717,1714553439642,-3000.0,0.00020547,2]
[325183718,1714553439651,-3000.0,0.00020547,2]
[325183719,1714553439661,-2710.02049851,0.00020547,2]
[325183720,1714553439671,-1576.98678225,0.00020912,2]
[325183721,1714553439680,-283.95389061,0.00020912,2]
[325183722,1714553439690,-3051.58762507,0.00020912,2]
[325183723,1714553439700,-1313.3815191,0.00020912,2]
[325183724,1714553439708,-362.38148801,0.00020912,2]
[325183725,1714553439719,-550.56357256,0.00020912,2]
[325183726,1714553439728,-1880.12188062,0.00020912,2]
[325183727,1714553439738,-1678.22103741,0.00020912,2]
[325183728,1714553439747,-1091.78088148,0.00020912,2]
[325183729,1714553439756,-155.40912067,0.00020912,2]
[325183730,1714553439767,-522.20590757,0.00020912,2]
[325183731,1714553439777,-154.84515485,0.00020912,2]
[325183732,1714553439787,-160.0,0.00021025,2]
[325183733,1714553439796,-160.36857771,0.00021573,2]
[325183734,1714553439805,-6301.0920352,0.00021918,2]
[325183735,1714553439815,-166.666666,0.00021918,2]
[325183736,1714553439824,-159.24114282,0.00022,2]
[325183737,1714553439833,-166.666666,0.00022431,2]
[325183738,1714553439848,-166.666666,0.00022944,2]
[325183739,1714553439858,-714.26625523,0.00023,2]
[325183740,1714553439867,-166.666666,0.00023456,2]
[325183741,1714553439877,-166.666666,0.00023969,2]
[325183742,1714553439886,-693.57389158,0.00024,2]
[325183743,1714553439895,-166.666666,0.00024482,2]
[325183744,1714553439905,-154.73694719,0.00025,2]
[325183745,1714553439914,-301.99797948,0.00025,2]
[325183746,1714553439923,-8530.80720591,0.00027,2]
[325183747,1714553439932,-1000.0,0.00027397,30]
[325183748,1714553439941,-1000.0,0.00027397,30]
[325183749,1714553439951,-1000.0,0.00027397,30]
[325183750,1714553439960,-1000.0,0.00027397,30]
[325183751,1714553439971,-1000.0,0.00027397,30]
[325183752,1714553439980,-1000.0,0.00027397,30]
[325183753,1714553439989,-1000.0,0.00027397,30]
[325183754,1714553439998,-1000.0,0.00027397,30]
[325183755,1714553440007,-1000.0,0.00027397,30]
[325183756,1714553440016,-808.48026348,0.000275,17]
[325183757,1714553440025,-220.96622212,0.00028,2]
[325183758,1714553440034,-966.86195972,0.00029282,2]
[325183759,1714553440043,-3723.00911832,0.0003,4]
[325183760,1714553440052,-1751.78944315,0.0003,7]
[325183762,1714553440061,-446.0,0.0003,2]
[325183764,1714553440071,-4506.99403117,0.00031,4]
[325183766,1714553440080,-447.2209758,0.00032,4]
[325183768,1714553440090,-300.00000002,0.00032,3]
[325183770,1714553440099,-2499.47,0.00032876,7]
[325183772,1714553440109,-2499.47,0.00032876,10]
[325183774,1714553440118,-2499.47,0.00032876,13]
[325183775,1714553440127,-2499.47,0.00032876,16]
[325183777,1714553440136,-2499.47,0.00032876,19]
[325183778,1714553440145,-2499.47,0.00032876,22]
[325183779,1714553440155,-2499.47,0.00032876,25]
[325183781,1714553440164,-2499.47,0.00032876,28]
[325183782,1714553440174,-2499.47,0.00032876,31]
[325183783,1714553440183,-2499.47,0.00032876,34]
[325183784,1714553440193,-2499.47,0.00032876,37]
[325183785,1714553440203,-276.39943109,0.00033875,2]
[325183786,1714553440212,-466.46671286,0.00034,4]
[325183788,1714553440224,-1608.78436868,0.00034,60]
[325183790,1714553440233,-1000.0,0.000348,3]
[325183792,1714553440242,-214.65163076,0.00035,4]
[325183795,1714553440251,-554.45471951,0.00035,30]
[325183797,1714553440261,-5917.45193267,0.00035,4]
[325183800,1714553440270,-597.98045973,0.00035,2]
[325183801,1714553440280,-333.81905426,0.00035,10]
[325183802,1714553440289,-912.88779443,0.00035,4]
[325183803,1714553440298,-1226.97473075,0.00035,30]
[325183804,1714553440307,-476.21,0.00035,30]
[325183805,1714553440316,-2499.47,0.00035616,40]
[325183806,1714553440326,-411.556233,0.00035616,120]
[325183807,1714553440335,-14354.31,0.00035616,3]
[325183808,1714553440344,-11961.93,0.00035616,3]
[325183809,1714553440353,-5000.0,0.00036,4]
[325183810,1714553440362,-150.69860279,0.00036451,2]
[325183812,1714553440372,-10664.09300882,0.00037,5]
[325183813,1714553440381,-2049.08470554,0.00037,2]
[325183814,1714553440390,-301.39720559,0.00037063,4]
[325183815,1714553440399,-602.79441118,0.00037686,7]
[325183816,1714553440411,-320.898431,0.00038,30]
[325183817,1714553440421,-1205.58882236,0.0003864,30]
[325183818,1714553440431,-966.86195972,0.00038666,2]
[325183819,1714553440440,-1635.5,0.00039398,3]
[325183820,1714553440449,-153.69519904,0.00039743,3]
[325183821,1714553440460,-2499.47,0.00039999,43]
[325183822,1714553440472,-486.33472313,0.0004,2]
[325183823,1714553440483,-233.10811646,0.0004,15]
[325183824,1714553440493,-1007.951808,0.000407,38]
[325183825,1714553440503,-315.93873987,0.00041,2]
[325183826,1714553440512,-1000.0,0.000412,38]
[325183827,1714553440522,-411.556233,0.00041553,120]
[325183828,1714553440531,-1000.0,0.000417,38]
[325183829,1714553440540,-154.87479115,0.00042025,30]
[325183830,1714553440549,-1000.0,0.000422,38]
[325183831,1714553440559,-154.73694719,0.0004234,10]
[325183832,1714553440569,-491.66851525,0.000425,30]
[325183833,1714553440578,-650.71394,0.00044376,2]
[325183834,1714553440587,-164.04387465,0.00044453,43]
[325183835,1714553440596,-164.04387465,0.00044453,43]
[325183836,1714553440605,-164.04387465,0.00044453,43]
[325183837,1714553440615,-8000.0,0.00044453,60]
[325183838,1714553440624,-1001.14167171,0.00044453,28]
[325183839,1714553440633,-1520.24750243,0.00045,4]
[325183840,1714553440642,-154.73694719,0.000459,4]
[325183842,1714553440651,-161.032701,0.00046575,2]
[325183843,1714553440660,-155.91384571,0.00046888,30]
[325183844,1714553440670,-650.71395,0.00047334,2]
[325183845,1714553440679,-411.556233,0.00047489,120]
[325183847,1714553440687,-966.86195972,0.00048049,2]
[325183849,1714553440697,-6730.49953425,0.00049,120]
[325183851,1714553440706,-155.91384571,0.00049128,30]
[325183852,1714553440715,-6078.54,0.00049262,7]
[325183853,1714553440729,-6078.54,0.00049262,7]
[325183854,1714553440737,-6078.54,0.00049262,7]
[325183855,1714553440746,-6078.54,0.00049262,7]
[325183856,1714553440756,-6078.54,0.00049262,7]
[325183857,1714553440765,-6078.54,0.00049262,7]
[325183858,1714553440774,-6078.54,0.00049262,7]
[325183859,1714553440783,-6078.54,0.00049262,7]
[325183860,1714553440792,-6078.54,0.00049262,7]
[325183861,1714553440802,-100206.262656,0.00049263,30]
[325183862,1714553440812,-172.730414,0.00049863,2]
[325183863,1714553440821,-262.029405,0.00049863,2]
[325183864,1714553440831,-2499.47,0.00049999,120]
[325183865,1714553440841,-879.94320873,0.0005,15]
[325183866,1714553440851,-8562.38280706,0.0005,120]
[325183867,1714553440860,-6381.22460461,0.0005,4]
[325183868,1714553440869,-154.73694719,0.0005,30]
[325183869,1714553440879,-960.60835228,0.0005,60]
[325183870,1714553440889,-650.71395,0.00050292,2]
[325183871,1714553440900,-150.0,0.00051,85]
[325183872,1714553440909,-2374.25,0.000526,60]
[325183873,1714553440919,-650.71395,0.00053251,2]
[325183874,1714553440928,-4921.0,0.000533,120]
[325183875,1714553440937,-5800.0,0.00053333,120]
[325183876,1714553440946,-411.556233,0.00053425,120]
[325183877,1714553440956,-257.3449351,0.00053479,60]
[325183878,1714553440965,-262.029405,0.00054448,2]
[325183879,1714553440977,-150.69860279,0.00054676,2]
[325183880,1714553440986,-500.0,0.00054794,120]
[325183881,1714553440995,-500.0,0.00054794,120]
[325183882,1714553441005,-500.0,0.00054794,120]
[325183883,1714553441014,-500.0,0.00054794,120]
[325183884,1714553441023,-500.0,0.00054794,120]
[325183885,1714553441033,-500.0,0.00054794,120]
[325183886,1714553441042,-500.0,0.00054794,120]
[325183887,1714553441051,-500.0,0.00054794,120]
[325183888,1714553441061,-500.0,0.00054794,120]
[325183889,1714553441070,-500.0,0.00054794,120]
[325183890,1714553441079,-500.0,0.00054794,120]
[325183891,1714553441089,-500.0,0.00054794,120]
[325183892,1714553441098,-500.0,0.00054794,120]
[325183893,1714553441107,-500.0,0.00054794,120]
[325183894,1714553441116,-1800.0,0.00056,120]
[325183895,1714553441126,-650.71395,0.00056209,2]
[325183896,1714553441135,-6078.61,0.00056999,30]
[325183897,1714553441144,-6000.0,0.00057,120]
[325183898,1714553441154,-179286.04347364,0.00057,2]
[325183899,1714553441163,-509.82286772,0.00057432,120]
[325183900,1714553441172,-509.82286772,0.00057432,120]
[325183901,1714553441182,-509.82286772,0.00057432,120]
[325183902,1714553441191,-509.82286772,0.00057432,120]
[325183903,1714553441201,-509.82286772,0.00057432,120]
[325183904,1714553441211,-509.82286772,0.00057432,120]
[325183905,1714553441223,-509.82286772,0.00057432,120]
[325183906,1714553441233,-509.82286772,0.00057432,120]
[325183907,1714553441243,-509.82286772,0.00057432,120]
[325183908,1714553441253,-509.82286772,0.00057432,120]
[325183909,1714553441263,-509.82286772,0.00057432,120]
[325183910,1714553441272,-509.82286772,0.00057432,120]
[325183911,1714553441282,-509.82286772,0.00057432,120]
[325183912,1714553441291,-509.82286772,0.00057432,120]
[325183913,1714553441301,-509.82286772,0.00057432,120]
[325183914,1714553441310,-509.82286772,0.00057432,120]
[325183915,1714553441320,-509.82286772,0.00057432,120]
[325183916,1714553441329,-509.82286772,0.00057432,120]
[325183917,1714553441338,-509.82286772,0.00057432,120]
[325183918,1714553441348,-510.32,0.00057432,120]
[325183919,1714553441357,-2039.36647087,0.00057432,120]
[325183920,1714553441368,-2039.36647087,0.00057432,120]
[325183921,1714553441378,-2039.36647087,0.00057432,120]
[325183922,1714553441388,-2039.36647087,0.00057432,120]
[325183923,1714553441397,-2039.36647087,0.00057432,120]
[325183924,1714553441407,-2039.36647087,0.00057432,120]
[325183925,1714553441417,-2039.36647087,0.00057432,120]
[325183926,1714553441430,-2039.36647087,0.00057432,120]
[325183927,1714553441440,-2039.36647087,0.00057432,120]
[325183928,1714553441449,-2039.36647087,0.00057432,120]
[325183929,1714553441457,-2039.36647087,0.00057432,120]
[325183930,1714553441467,-2039.36647087,0.00057432,120]
[325183931,1714553441477,-2039.36647087,0.00057432,120]
[325183932,1714553441486,-2039.36647087,0.00057432,120]
[325183933,1714553441495,-2039.36647087,0.00057432,120]
[325183934,1714553441507,-2039.36647087,0.00057432,120]
[325183935,1714553441517,-2039.36647087,0.00057432,120]
[325183936,1714553441526,-2039.36647087,0.00057432,120]
[325183937,1714553441535,-2039.36647087,0.00057432,120]
[325183938,1714553441545,-2039.86,0.00057432,120]
[325183939,1714553441554,-966.86195972,0.00057433,2]
[325183940,1714553441563,-214.86,0.0005752,35]
[325183941,1714553441572,-150.5,0.0005753,35]
[325183942,1714553441581,-362.97,0.00057531,120]
[325183943,1714553441590,-2499.47,0.00057531,120]
[325183944,1714553441599,-2499.47,0.00057531,120]
[325183945,1714553441608,-2499.47,0.00057532,120]
[325183946,1714553441618,-2499.47,0.00057532,120]
[325183947,1714553441627,-2499.47,0.00057532,120]
[325183948,1714553441636,-2499.47,0.00057532,120]
[325183949,1714553441645,-2499.47,0.00057532,120]
[325183950,1714553441654,-2499.47,0.00057532,120]
[325183951,1714553441664,-2499.47,0.00057532,120]
[325183952,1714553441673,-2499.58,0.00057532,120]
[325183953,1714553441682,-268564.53408163,0.00057532,120]
[325183954,1714553441696,-935.0,0.00057532,120]
[325183955,1714553442071,-2480.74540206,0.00057532,120]
[325184022,1714553443889,-137.22549593,0.00057532,120]
[325184189,1714553597803,154.69061876,9.999e-05,2]
[325184193,1714553660861,-189.426794,0.00018923,2]
[325184194,1714553660885,-312.97578303,0.00018923,2]
[325184195,1714553660909,-622.59742297,0.00018924,2]
[325184197,1714554032395,446.72143296,9.999e-05,2]
[325184198,1714554384857,273.37336231,9.9e-05,2]
[325184199,1714554397277,273.37336231,9.9e-05,2]
[325184200,1714554405800,273.37336231,9.9e-05,2]
[325184201,1714554415667,273.37336231,9.9e-05,2]
[325184202,1714554423674,273.37336231,9.9e-05,2]
[325184203,1714554432816,273.37336231,9.9e-05,2]
[325184204,1714554440811,273.37336231,9.9e-05,2]
[325184205,1714554449025,273.37336231,9.9e-05,2]
[325184206,1714554457508,273.37336231,9.9e-05,2]
[325184207,1714554465867,273.37336231,9.9e-05,2]
[325184208,1714554473935,273.37336231,9.9e-05,2]
[325184209,1714554482521,273.37336231,9.9e-05,2]
[325184210,1714554490516,273.37336231,9.9e-05,2]
[325184211,1714554498945,273.37336231,9.9e-05,2]
[325184212,1714554502528,446.72143296,9.999e-05,2]
[325184213,1714554507586,273.37336231,9.9e-05,2]
[325184214,1714554516507,273.37336231,9.9e-05,2]
[325184215,1714554525088,273.37336231,9.9e-05,2]
[325184216,1714554534641,273.37336231,9.9e-05,2]
[325184217,1714554543374,273.37336231,9.9e-05,2]
[325184218,1714554551664,273.37336231,9.9e-05,2]
[325184219,1714554559659,273.37336231,9.9e-05,2]
[325184220,1714554565153,-1443.41358036,0.00012355,2]
[325184221,1714554567857,273.37336231,9.9e-05,2]
[325184222,1714554575789,273.37336231,9.9e-05,2]
[325184223,1714554584671,273.37336231,9.9e-05,2]
[325184224,1714554592765,273.37336231,9.9e-05,2]
[325184225,1714554602202,273.37336231,9.9e-05,2]
[325184226,1714554610271,273.37336231,9.9e-05,2]
[325184227,1714554618609,273.37336231,9.9e-05,2]
[325184228,1714554626669,273.37336231,9.9e-05,2]
[325184251,1714554633549,-5726.1912,0.00012353,2]
[325184253,1714554633644,-2149.17007702,0.00012353,2]
[325184254,1714554633654,-4235.50520511,0.00012355,2]
[325184255,1714554633666,-1453.99588173,0.00012355,2]
[325184256,1714554633677,-8543.58062451,0.00012355,2]
[325184257,1714554633687,-6113.6481501,0.00012356,2]
[325184258,1714554633696,-446.72143296,0.00013059,2]
[325184259,1714554633705,-164.33590387,0.0001306,2]
[325184260,1714554633714,-250.0,0.00013166,2]
[325184261,1714554633723,-24900.0,0.00013651,2]
[325184262,1714554633732,-928.84070559,0.00014,2]
[325184263,1714554633741,-1682.8508983,0.00014288,2]
[325184264,1714554633751,-939.61631274,0.00015,2]
[325184265,1714554633761,-2392.92958612,0.00015,2]
[325184266,1714554633774,-2101.71813346,0.00015,2]
[325184267,1714554633784,-312.97578303,0.00015,2]
[325184268,1714554633793,-9378.45996285,0.00016,2]
[325184269,1714554633804,-514.39558646,0.00016,2]
[325184270,1714554633813,-164.33590386,0.0001648,2]
[325184271,1714554633823,-195.3556566,0.000168,2]
[325184272,1714554633832,-195.3556566,0.000168,2]
[325184273,1714554633842,-195.3556566,0.000168,2]
[325184274,1714554633853,-1778.90420239,0.00017817,2]
[325184275,1714554633863,-603.94471779,0.000185,2]
[325184276,1714554633872,-13411.09192541,0.00018827,2]
[325184277,1714554633883,-161.032702,0.00019178,2]
[325184278,1714554633892,-160.675707,0.00019178,2]
[325184279,1714554633901,-189.06464916,0.00019795,2]
[325184280,1714554633910,-815.0345819,0.000199,2]
[325184281,1714554633919,-164.33590386,0.000199,2]
[325184282,1714554633928,-8044.78707885,0.000199,2]
[325184283,1714554633938,-217.2,0.00019989,3]
[325184284,1714554633947,-1293.16363602,0.00019997,2]
[325184285,1714554633957,-189.88906116,0.00019998,2]
[325184286,1714554633966,-195.63652204,0.00019998,2]
[325184287,1714554633975,-269.85407038,0.00019998,2]
[325184288,1714554633984,-1206.42296013,0.00019999,2]
[325184289,1714554635538,273.37336231,9.9e-05,2]
[325184319,1714554642466,-2590.79776208,0.00012352,2]
[325184321,1714554642476,-2650.66473387,0.00019999,2]
[325184323,1714554642487,-20000.0,0.00019999,2]
[325184325,1714554642498,-1147.43259521,0.00019999,2]
[325184327,1714554642510,-34222.21927408,0.00019999,2]
[325184329,1714554642519,-16358.21983027,0.0002,2]
[325184330,1714554642528,-5461.4995396,0.0002,2]
[325184331,1714554642537,-241.74656629,0.0002,2]
[325184332,1714554642547,-67435.2931103,0.0002,2]
[325184333,1714554642556,-330.04006716,0.0002,2]
[325184335,1714554642565,-1276.88917467,0.0002091,2]
[325184337,1714554642574,-475.19457976,0.00020911,2]
[325184338,1714554642583,-32162.78495741,0.00020911,2]
[325184339,1714554642592,-177.52743323,0.00020912,2]
[325184340,1714554642601,-2377.07604782,0.00020912,2]
[325184341,1714554642610,-1313.01433148,0.00020912,2]
[325184342,1714554642620,-373.78714141,0.00020913,2]
[325184343,1714554642629,-19823.44448709,0.00020913,2]
[325184344,1714554642640,-3403.74180722,0.00020913,2]
[325184345,1714554642650,-236.60901186,0.00021,2]
[325184347,1714554642659,-34649.24609233,0.00021,2]
[325184349,1714554642668,-10011.97737267,0.00021,2]
[325184351,1714554642677,-197.30034125,0.00021,2]
[325184352,1714554642686,-166.666666,0.00021918,2]
[325184353,1714554642696,-159.24114282,0.00022,2]
[325184354,1714554642705,-166.666666,0.00022431,2]
[325184355,1714554642716,-166.666666,0.00022944,2]
[325184356,1714554642726,-714.26625523,0.00023,2]
[325184357,1714554642735,-166.666666,0.00023456,2]
[325184359,1714554642744,-166.666666,0.00023969,2]
[325184360,1714554642753,-693.57389158,0.00024,2]
[325184361,1714554642765,-166.666666,0.00024482,2]
[325184362,1714554642775,-155.07319309,0.00025,2]
[325184363,1714554642785,-815.03458186,0.00025995,2]
[325184364,1714554642796,-620.00000111,0.00026041,2]
[325184365,1714554642807,-8555.04734507,0.00027,2]
[325184366,1714554642815,-194.06678592,0.00027123,2]
[325184367,1714554642825,-620.00000006,0.00027343,2]
[325184368,1714554642834,-220.96622212,0.00028,2]
[325184369,1714554642843,-3346.07825843,0.0003,4]